lending/lending_fUSD_20240120
["ID","MTS","AMOUNT","RATE_DAILY","PERIOD"]
[312286833,1705741851276,-500.0,0.00025753,2]
[312286834,1705741851288,-500.0,0.00025753,2]
[312286835,1705741851300,-500.0,0.00025753,2]
[312286836,1705741851312,-500.0,0.00025753,2]
[312286837,1705741851324,-500.0,0.00025753,2]
[312286838,1705741851337,-500.0,0.00025753,2]
[312286839,1705741851349,-500.0,0.00025753,2]
[312286840,1705741851361,-746.54,0.00025753,2]
[312286841,1705741851373,-377.17590336,0.00025753,2]
[312286842,1705741851385,-1406.54,0.00025753,2]
[312286843,1705741851397,-500.0,0.00025753,2]
[312286844,1705741851409,-554.01,0.00025753,2]
[312286845,1705741851419,-453.54179506,0.00025753,2]
[312286846,1705741851431,-792.94,0.00025753,2]
[312286847,1705741851446,-500.0,0.00025753,2]
[312286848,1705741851457,-500.0,0.00025753,2]
[312286849,1705741851469,-500.0,0.00025753,2]
[312286850,1705741851482,-500.0,0.00025753,2]
[312286851,1705741851494,-1234.19,0.00025753,2]
[312286852,1705741851506,-500.0,0.00025753,2]
[312286853,1705741851519,-500.0,0.00025753,2]
[312286854,1705741851531,-1093.58,0.00025753,2]
[312286855,1705741851544,-556.05,0.00025753,2]
[312286856,1705741851555,-500.0,0.00025753,2]
[312286857,1705741851566,-1069.38,0.00025753,2]
[312286858,1705741851576,-500.0,0.00025753,2]
[312286859,1705741851589,-500.0,0.00025753,2]
[312286860,1705741851601,-500.0,0.00025753,2]
[312286861,1705741851613,-500.0,0.00025753,2]
[312286862,1705741851625,-2143.47,0.00025753,2]
[312286863,1705741851638,-600.08498805,0.00025753,2]
[312286864,1705741851649,-500.0,0.00025753,2]
[312286865,1705741851663,-500.0,0.00025753,2]
[312286866,1705741851673,-766.22,0.00025753,2]
[312286867,1705741851685,-500.0,0.00025753,2]
[312286868,1705741851696,-500.0,0.00025753,2]
[312286869,1705741851708,-212.83611436,0.00025753,2]
[312286870,1705741851720,-2684.58,0.00025753,2]
[312286871,1705741851732,-1462.82,0.00025753,2]
[312286872,1705741851744,-1168.59,0.00025753,2]
[312286873,1705741851757,-250.0,0.000258,2]
[312286874,1705741851768,-6847.11611623,0.00025927,2]
[312286875,1705741852047,-864.39749552,0.00025927,2]
[312286876,1705741852060,-2137.2968041,0.00025927,2]
[312286877,1705741852073,-5177.05066905,0.00025927,2]
[312286878,1705741852094,-1043.19134891,0.00025927,2]
[312286879,1705741852107,-1367.80188262,0.00025927,2]
[312286880,1705741852120,-668.62981186,0.00025927,2]
[312286881,1705741852134,-977.2198747,0.00025927,2]
[312286882,1705741852147,-655.0793876,0.00025927,2]
[312286883,1705741852161,-717.14339935,0.00025927,2]
[312286884,1705741852175,-409.79455518,0.00025927,2]
[312286885,1705741852188,-5512.38230237,0.00025927,2]
[312286886,1705741852201,-1192.9975616,0.00025927,2]
[312286887,1705741852214,-83.00535998,0.00025927,2]
[312286888,1705741852225,-151.88694272,0.00025927,2]
[312286889,1705741852238,-31.54585833,0.00026027,2]
[312286890,1705741852599,-554.89384825,0.00024656,7]
[312286891,1705741852610,-968.45414167,0.00026027,2]
[312286892,1705741852621,-500.0,0.00026027,2]
[312286893,1705741852632,-500.0,0.00026027,2]
[312286894,1705741852642,-1167.0,0.00026027,2]
[312286895,1705741852653,-500.0,0.00026027,2]
[312286896,1705741852663,-500.0,0.00026027,2]
[312286897,1705741852674,-500.0,0.00026027,2]
[312286898,1705741852684,-500.0,0.00026027,2]
[312286899,1705741852695,-780.43,0.00026027,2]
[312286900,1705741852705,-500.0,0.00026027,2]
[312286901,1705741852715,-500.0,0.00026027,2]
[312286902,1705741852725,-500.0,0.00026027,2]
[312286903,1705741852735,-500.0,0.00026027,2]
[312286904,1705741852745,-500.0,0.00026027,2]
[312286905,1705741852756,-500.0,0.00026027,2]
[312286906,1705741852767,-1536.86,0.00026027,2]
[312286907,1705741852777,-500.0,0.00026027,2]
[312286908,1705741852788,-500.0,0.00026027,2]
[312286909,1705741852798,-407.30283158,0.00026027,2]
[312286910,1705741852810,-500.0,0.00026027,2]
[312286911,1705741852820,-654.3,0.00026027,2]
[312286912,1705741852831,-500.0,0.00026027,2]
[312286913,1705741852841,-748.65,0.00026027,2]
[312286914,1705741852851,-500.0,0.00026027,2]
[312286915,1705741852861,-561.23,0.00026027,2]
[312286916,1705741852871,-1015.01,0.00026027,2]
[312286917,1705741852881,-740.7,0.00026027,2]
[312286918,1705741852891,-6556.22,0.00026027,2]
[312286919,1705741852902,-500.0,0.00026027,2]
[312286920,1705741852913,-500.0,0.00026027,2]
[312286921,1705741852924,-500.0,0.00026027,2]
[312286922,1705741852934,-500.0,0.00026027,2]
[312286923,1705741852945,-1419.33,0.00026027,2]
[312286924,1705741852955,-500.0,0.00026027,2]
[312286925,1705741852965,-500.0,0.00026027,2]
[312286926,1705741852976,-868.32,0.00026027,2]
[312286927,1705741852986,-1070.49,0.00026027,2]
[312286928,1705741852996,-1312.51,0.00026027,2]
[312286929,1705741853006,-2067.06,0.00026027,2]
[312286930,1705741853017,-500.0,0.00026027,2]
[312286931,1705741853027,-500.0,0.00026027,2]
[312286932,1705741853040,-2744.64,0.00026027,2]
[312286933,1705741853049,-500.0,0.00026027,2]
[312286934,1705741853059,-500.0,0.00026027,2]
[312286935,1705741853068,-596.61,0.00026027,2]
[312286936,1705741853077,-512.55,0.00026027,2]
[312286937,1705741853086,-500.0,0.00026027,2]
[312286938,1705741853097,-500.0,0.00026027,2]
[312286939,1705741853106,-504.57990131,0.00026027,2]
[312286940,1705741853117,-500.0,0.00026027,2]
[312286941,1705741853127,-1054.91,0.00026027,2]
[312286942,1705741853138,-500.0,0.00026027,2]
[312286943,1705741853147,-500.0,0.00026027,2]
[312286944,1705741853157,-500.0,0.00026027,2]
[312286945,1705741853166,-702.76,0.00026027,2]
[312286946,1705741853175,-318.36416913,0.00026027,2]
[312286947,1705741853185,-279.6214231,0.00026027,2]
[312286948,1705741853195,-500.0,0.00026027,2]
[312286949,1705741853206,-741.49,0.00026027,2]
[312286950,1705741853215,-500.0,0.00026027,2]
[312286951,1705741853225,-500.0,0.00026027,2]
[312286952,1705741853235,-500.0,0.00026027,2]
[312286953,1705741853246,-402.38884657,0.00026027,2]
[312286954,1705741853255,-500.0,0.00026027,2]
[312286955,1705741853265,-729.08,0.00026027,2]
[312286956,1705741853275,-500.0,0.00026027,2]
[312286957,1705741853285,-500.0,0.00026027,2]
[312286958,1705741853295,-500.0,0.00026027,2]
[312286959,1705741853304,-250.0,0.00026027,2]
[312286960,1705741853313,-500.0,0.00026027,2]
[312286961,1705741853322,-5239.03,0.00026027,2]
[312286962,1705741853331,-585.68,0.00026027,2]
[312286963,1705741853340,-500.0,0.00026027,2]
[312286964,1705741853351,-577.95,0.00026027,2]
[312286965,1705741853363,-1220.81,0.00026027,2]
[312286966,1705741853373,-500.0,0.00026027,2]
[312286967,1705741853382,-500.0,0.00026027,2]
[312286968,1705741853391,-878.0,0.00026027,2]
[312286969,1705741853401,-500.0,0.00026027,2]
[312286970,1705741853411,-3403.36,0.00026027,2]
[312286971,1705741853421,-5505.69,0.00026027,2]
[312286972,1705741853431,-500.0,0.00026027,2]
[312286973,1705741853447,-529.47,0.00026027,2]
[312286974,1705741853457,-508.02,0.00026027,2]
[312286975,1705741853466,-575.26,0.00026027,2]
[312286976,1705741853476,-500.0,0.00026027,2]
[312286977,1705741853487,-500.0,0.00026027,2]
[312286978,1705741853496,-500.0,0.00026027,2]
[312286979,1705741853506,-561.07,0.00026027,2]
[312286980,1705741853518,-515.62,0.00026027,2]
[312286981,1705741853858,-500.0,0.00026027,2]
[312286982,1705741853873,-500.0,0.00026027,2]
[312286983,1705741853883,-500.0,0.00026027,2]
[312286984,1705741853892,-518.41,0.00026027,2]
[312286985,1705741853904,-718.87,0.00026027,2]
[312286986,1705741853914,-500.0,0.00026027,2]
[312286987,1705741853924,-500.0,0.00026027,2]
[312286988,1705741853933,-500.0,0.00026027,2]
[312286989,1705741853943,-500.0,0.00026027,2]
[312286990,1705741853953,-500.0,0.00026027,2]
[312286991,1705741853963,-500.0,0.00026027,2]
[312286992,1705741853973,-500.0,0.00026027,2]
[312286993,1705741853982,-746.54,0.00026027,2]
[312286994,1705741853991,-1406.54,0.00026027,2]
[312286995,1705741854000,-500.0,0.00026027,2]
[312286996,1705741854009,-554.01,0.00026027,2]
[312286997,1705741854018,-792.94,0.00026027,2]
[312286998,1705741854028,-500.0,0.00026027,2]
[312286999,1705741854038,-500.0,0.00026027,2]
[312287000,1705741854047,-500.0,0.00026027,2]
[312287001,1705741854058,-500.0,0.00026027,2]
[312287002,1705741854068,-1234.19,0.00026027,2]
[312287003,1705741854078,-500.0,0.00026027,2]
[312287004,1705741854087,-1093.58,0.00026027,2]
[312287005,1705741854097,-504.91539416,0.00026027,2]
[312287006,1705741854107,-556.05,0.00026027,2]
[312287007,1705741854117,-500.0,0.00026027,2]
[312287008,1705741854126,-1069.38,0.00026027,2]
[312287009,1705741854136,-500.0,0.00026027,2]
[312287010,1705741854145,-340.76009482,0.00026027,2]
[312287011,1705741854154,-500.0,0.00026027,2]
[312287012,1705741854163,-500.0,0.00026027,2]
[312287013,1705741854173,-2143.47,0.00026027,2]
[312287014,1705741854182,-500.0,0.00026027,2]
[312287015,1705741854191,-500.0,0.00026027,2]
[312287016,1705741854201,-766.22,0.00026027,2]
[312287017,1705741854211,-500.0,0.00026027,2]
[312287018,1705741854221,-500.0,0.00026027,2]
[312287019,1705741854230,-1462.82,0.00026027,2]
[312287020,1705741854240,-2684.58,0.00026027,2]
[312287021,1705741854249,-1168.59,0.00026027,2]
[312287022,1705741854259,-587.83,0.00026035,2]
[312287023,1705741854268,-1225.89,0.00026249,2]
[312287024,1705741854277,-151.88694272,0.00026296,2]
[312287025,1705741854290,-500.0,0.00026299,2]
[312287026,1705741854302,-737.0,0.000263,2]
[312287027,1705741854311,-250.0,0.000263,2]
[312287028,1705741854320,-155.0,0.00026301,2]
[312287029,1705741854329,-636.25117922,0.00026301,2]
[312287030,1705741854337,-500.0,0.00026301,2]
[312287031,1705741854346,-500.0,0.00026301,2]
[312287032,1705741854355,-1167.0,0.00026301,2]
[312287033,1705741854364,-350.59,0.00026301,2]
[312287034,1705741854373,-500.0,0.00026301,2]
[312287035,1705741854382,-500.0,0.00026301,2]
[312287036,1705741854391,-500.0,0.00026301,2]
[312287037,1705741854400,-780.43,0.00026301,2]
[312287038,1705741854409,-500.0,0.00026301,2]
[312287039,1705741854419,-500.0,0.00026301,2]
[312287040,1705741854427,-500.0,0.00026301,2]
[312287041,1705741854436,-500.0,0.00026301,2]
[312287042,1705741854449,-500.0,0.00026301,2]
[312287043,1705741854458,-500.0,0.00026301,2]
[312287044,1705741854468,-1536.86,0.00026301,2]
[312287045,1705741854477,-500.0,0.00026301,2]
[312287046,1705741854487,-500.0,0.00026301,2]
[312287047,1705741854496,-500.0,0.00026301,2]
[312287048,1705741854505,-654.3,0.00026301,2]
[312287049,1705741854515,-500.0,0.00026301,2]
[312287050,1705741854525,-748.65,0.00026301,2]
[312287051,1705741854537,-500.0,0.00026301,2]
[312287052,1705741854549,-561.23,0.00026301,2]
[312287053,1705741854558,-1015.01,0.00026301,2]
[312287054,1705741854568,-740.7,0.00026301,2]
[312287055,1705741854577,-6556.22,0.00026301,2]
[312287056,1705741854586,-500.0,0.00026301,2]
[312287057,1705741854595,-500.0,0.00026301,2]
[312287058,1705741854605,-500.0,0.00026301,2]
[312287059,1705741854615,-500.0,0.00026301,2]
[312287060,1705741854625,-1419.33,0.00026301,2]
[312287061,1705741854635,-500.0,0.00026301,2]
[312287062,1705741854644,-500.0,0.00026301,2]
[312287063,1705741854654,-1070.49,0.00026301,2]
[312287064,1705741854664,-868.32,0.00026301,2]
[312287065,1705741854674,-1312.51,0.00026301,2]
[312287066,1705741854684,-2067.06,0.00026301,2]
[312287067,1705741854695,-500.0,0.00026301,2]
[312287068,1705741854705,-500.0,0.00026301,2]
[312287069,1705741854714,-2744.64,0.00026301,2]
[312287070,1705741854723,-500.0,0.00026301,2]
[312287071,1705741854732,-647.74759441,0.00026301,2]
[312287072,1705741854741,-596.61,0.00026301,2]
[312287073,1705741854750,-512.55,0.00026301,2]
[312287074,1705741854759,-500.0,0.00026301,2]
[312287075,1705741854768,-500.0,0.00026301,2]
[312287076,1705741854777,-500.0,0.00026301,2]
[312287077,1705741854789,-1054.91,0.00026301,2]
[312287078,1705741854798,-500.0,0.00026301,2]
[312287079,1705741854808,-500.0,0.00026301,2]
[312287080,1705741854817,-702.76,0.00026301,2]
[312287081,1705741854826,-500.0,0.00026301,2]
[312287082,1705741854835,-741.49,0.00026301,2]
[312287083,1705741854845,-500.0,0.00026301,2]
[312287084,1705741854854,-500.0,0.00026301,2]
[312287085,1705741854863,-500.0,0.00026301,2]
[312287086,1705741854872,-500.0,0.00026301,2]
[312287087,1705741854881,-500.0,0.00026301,2]
[312287088,1705741854891,-729.08,0.00026301,2]
[312287089,1705741854900,-500.0,0.00026301,2]
[312287090,1705741854910,-500.0,0.00026301,2]
[312287091,1705741854919,-500.0,0.00026301,2]
[312287092,1705741854928,-250.0,0.00026301,2]
[312287093,1705741854938,-500.0,0.00026301,2]
[312287094,1705741854948,-5239.03,0.00026301,2]
[312287095,1705741854958,-585.68,0.00026301,2]
[312287096,1705741854967,-500.0,0.00026301,2]
[312287097,1705741854977,-577.95,0.00026301,2]
[312287098,1705741854987,-1220.81,0.00026301,2]
[312287099,1705741854996,-500.0,0.00026301,2]
[312287100,1705741855005,-500.0,0.00026301,2]
[312287101,1705741855015,-878.0,0.00026301,2]
[312287102,1705741855024,-500.0,0.00026301,2]
[312287103,1705741855034,-3403.36,0.00026301,2]
[312287104,1705741855046,-5505.69,0.00026301,2]
[312287105,1705741855055,-500.0,0.00026301,2]
[312287106,1705741855064,-508.02,0.00026301,2]
[312287107,1705741855074,-529.47,0.00026301,2]
[312287108,1705741855083,-575.26,0.00026301,2]
[312287109,1705741855092,-500.0,0.00026301,2]
[312287110,1705741855101,-500.0,0.00026301,2]
[312287111,1705741855110,-500.0,0.00026301,2]
[312287112,1705741855118,-561.07,0.00026301,2]
[312287113,1705741855127,-515.62,0.00026301,2]
[312287114,1705741855137,-500.0,0.00026301,2]
[312287115,1705741855147,-500.0,0.00026301,2]
[312287116,1705741855156,-631.27895354,0.00026301,2]
[312287117,1705741855165,-518.41,0.00026301,2]
[312287118,1705741855174,-718.87,0.00026301,2]
[312287119,1705741855184,-500.0,0.00026301,2]
[312287120,1705741855193,-500.0,0.00026301,2]
[312287121,1705741855202,-500.0,0.00026301,2]
[312287122,1705741855211,-211.09,0.00026301,2]
[312287123,1705741855221,-500.0,0.00026301,2]
[312287124,1705741855231,-500.0,0.00026301,2]
[312287125,1705741855240,-500.0,0.00026301,2]
[312287126,1705741855249,-746.54,0.00026301,2]
[312287127,1705741855258,-1406.54,0.00026301,2]
[312287128,1705741855268,-500.0,0.00026301,2]
[312287129,1705741855277,-554.01,0.00026301,2]
[312287130,1705741855289,-792.94,0.00026301,2]
[312287131,1705741855298,-500.0,0.00026301,2]
[312287132,1705741855307,-500.0,0.00026301,2]
[312287133,1705741855317,-500.0,0.00026301,2]
[312287134,1705741855327,-500.0,0.00026301,2]
[312287135,1705741855335,-1234.19,0.00026301,2]
[312287136,1705741855345,-500.0,0.00026301,2]
[312287137,1705741855354,-1093.58,0.00026301,2]
[312287138,1705741855363,-556.05,0.00026301,2]
[312287139,1705741855373,-484.69150143,0.00026301,2]
[312287140,1705741855382,-1069.38,0.00026301,2]
[312287141,1705741855391,-500.0,0.00026301,2]
[312287142,1705741855401,-500.0,0.00026301,2]
[312287143,1705741855411,-500.0,0.00026301,2]
[312287144,1705741855423,-2143.47,0.00026301,2]
[312287145,1705741855432,-500.0,0.00026301,2]
[312287146,1705741855444,-500.0,0.00026301,2]
[312287147,1705741855454,-766.22,0.00026301,2]
[312287148,1705741855463,-500.0,0.00026301,2]
[312287149,1705741855472,-500.0,0.00026301,2]
[312287150,1705741855482,-1462.82,0.00026301,2]
[312287151,1705741855492,-2684.58,0.00026301,2]
[312287152,1705741855504,-1168.59,0.00026301,2]
[312287153,1705741855513,-170.9,0.00026391,2]
[312287154,1705741855523,-80789.87045347,0.000264,2]
[312287155,1705741855533,-1708.4853603,0.00026464,3]
[312287156,1705741855544,-800.0,0.00026574,2]
[312287157,1705741855555,-500.0,0.00026574,2]
[312287158,1705741855564,-500.0,0.00026575,2]
[312287159,1705741855574,-500.0,0.00026575,2]
[312287160,1705741855584,-1167.0,0.00026575,2]
[312287161,1705741855593,-500.0,0.00026575,2]
[312287162,1705741855601,-500.0,0.00026575,2]
[312287163,1705741855611,-500.0,0.00026575,2]
[312287164,1705741855621,-780.43,0.00026575,2]
[312287165,1705741855630,-500.0,0.00026575,2]
[312287166,1705741855639,-500.0,0.00026575,2]
[312287167,1705741855648,-500.0,0.00026575,2]
[312287168,1705741855658,-500.0,0.00026575,2]
[312287169,1705741855668,-500.0,0.00026575,2]
[312287170,1705741855678,-198.82165559,0.00026575,2]
[312287171,1705741855687,-1536.86,0.00026575,2]
[312287172,1705741855697,-500.0,0.00026575,2]
[312287173,1705741855706,-500.0,0.00026575,2]
[312287174,1705741855715,-400.64425666,0.00026575,2]
[312287175,1705741855724,-654.3,0.00026575,2]
[312287176,1705741855733,-500.0,0.00026575,2]
[312287177,1705741855742,-748.65,0.00026575,2]
[312287178,1705741855751,-500.0,0.00026575,2]
[312287179,1705741855760,-561.23,0.00026575,2]
[312287180,1705741855769,-1015.01,0.00026575,2]
[312287181,1705741855778,-740.7,0.00026575,2]
[312287182,1705741855788,-6556.22,0.00026575,2]
[312287183,1705741855796,-500.0,0.00026575,2]
[312287184,1705741855805,-500.0,0.00026575,2]
[312287185,1705741855814,-500.0,0.00026575,2]
[312287186,1705741855823,-500.0,0.00026575,2]
[312287187,1705741855833,-1419.33,0.00026575,2]
[312287188,1705741855842,-500.0,0.00026575,2]
[312287189,1705741855851,-500.0,0.00026575,2]
[312287190,1705741855859,-1070.49,0.00026575,2]
[312287191,1705741855868,-868.32,0.00026575,2]
[312287192,1705741855877,-1312.51,0.00026575,2]
[312287193,1705741855886,-2067.06,0.00026575,2]
[312287194,1705741855895,-500.0,0.00026575,2]
[312287195,1705741855905,-500.0,0.00026575,2]
[312287196,1705741855914,-2744.64,0.00026575,2]
[312287197,1705741855923,-500.0,0.00026575,2]
[312287198,1705741855933,-596.61,0.00026575,2]
[312287199,1705741855942,-512.55,0.00026575,2]
[312287200,1705741855951,-500.0,0.00026575,2]
[312287201,1705741855961,-500.0,0.00026575,2]
[312287202,1705741855969,-500.0,0.00026575,2]
[312287203,1705741855979,-1054.91,0.00026575,2]
[312287204,1705741855988,-500.0,0.00026575,2]
[312287205,1705741855997,-500.0,0.00026575,2]
[312287206,1705741856006,-702.76,0.00026575,2]
[312287207,1705741856015,-500.0,0.00026575,2]
[312287208,1705741856025,-741.49,0.00026575,2]
[312287209,1705741856037,-500.0,0.00026575,2]
[312287210,1705741856046,-500.0,0.00026575,2]
[312287211,1705741856055,-500.0,0.00026575,2]
[312287212,1705741856064,-500.0,0.00026575,2]
[312287213,1705741856073,-500.0,0.00026575,2]
[312287214,1705741856083,-500.0,0.00026575,2]
[312287215,1705741856092,-729.08,0.00026575,2]
[312287216,1705741856101,-500.0,0.00026575,2]
[312287217,1705741856110,-500.0,0.00026575,2]
[312287218,1705741856119,-250.0,0.00026575,2]
[312287219,1705741856129,-500.0,0.00026575,2]
[312287220,1705741856138,-5239.03,0.00026575,2]
[312287221,1705741856147,-585.68,0.00026575,2]
[312287222,1705741856156,-500.0,0.00026575,2]
[312287223,1705741856165,-577.95,0.00026575,2]
[312287224,1705741856174,-1220.81,0.00026575,2]
[312287225,1705741856183,-500.0,0.00026575,2]
[312287226,1705741856193,-500.0,0.00026575,2]
[312287227,1705741856202,-878.0,0.00026575,2]
[312287228,1705741856211,-500.0,0.00026575,2]
[312287229,1705741856221,-3403.36,0.00026575,2]
[312287230,1705741856230,-5505.69,0.00026575,2]
[312287231,1705741856240,-508.02,0.00026575,2]
[312287232,1705741856250,-500.0,0.00026575,2]
[312287233,1705741856259,-529.47,0.00026575,2]
[312287234,1705741856268,-575.26,0.00026575,2]
[312287235,1705741856278,-500.0,0.00026575,2]
[312287236,1705741856287,-500.0,0.00026575,2]
[312287237,1705741856297,-500.0,0.00026575,2]
[312287238,1705741856306,-561.07,0.00026575,2]
[312287239,1705741856315,-515.62,0.00026575,2]
[312287240,1705741856325,-500.0,0.00026575,2]
[312287241,1705741856334,-500.0,0.00026575,2]
[312287242,1705741856343,-518.41,0.00026575,2]
[312287243,1705741856353,-718.87,0.00026575,2]
[312287244,1705741856363,-500.0,0.00026575,2]
[312287245,1705741856372,-500.0,0.00026575,2]
[312287246,1705741856382,-509.39559742,0.00026575,2]
[312287247,1705741856391,-500.0,0.00026575,2]
[312287248,1705741856401,-500.0,0.00026575,2]
[312287249,1705741856411,-500.0,0.00026575,2]
[312287250,1705741856420,-746.54,0.00026575,2]
[312287251,1705741856429,-1406.54,0.00026575,2]
[312287252,1705741856442,-500.0,0.00026575,2]
[312287253,1705741856453,-554.01,0.00026575,2]
[312287254,1705741856463,-792.94,0.00026575,2]
[312287255,1705741856473,-500.0,0.00026575,2]
[312287256,1705741856483,-500.0,0.00026575,2]
[312287257,1705741856492,-500.0,0.00026575,2]
[312287258,1705741856501,-500.0,0.00026575,2]
[312287259,1705741856511,-1234.19,0.00026575,2]
[312287260,1705741856522,-500.0,0.00026575,2]
[312287261,1705741856531,-1093.58,0.00026575,2]
[312287262,1705741856544,-556.05,0.00026575,2]
[312287263,1705741856554,-1069.38,0.00026575,2]
[312287264,1705741856564,-500.0,0.00026575,2]
[312287265,1705741856573,-500.0,0.00026575,2]
[312287266,1705741856583,-500.0,0.00026575,2]
[312287267,1705741856592,-2143.47,0.00026575,2]
[312287268,1705741856602,-500.0,0.00026575,2]
[312287269,1705741856612,-500.0,0.00026575,2]
[312287270,1705741856621,-766.22,0.00026575,2]
[312287271,1705741856631,-500.0,0.00026575,2]
[312287272,1705741856642,-500.0,0.00026575,2]
[312287273,1705741856652,-1462.82,0.00026575,2]
[312287274,1705741856662,-2684.58,0.00026575,2]
[312287275,1705741856672,-1168.59,0.00026575,2]
[312287276,1705741856682,-9697.53,0.00026575,2]
[312287277,1705741856692,-27653.10656904,0.00026606,2]
[312287278,1705741856701,-151.88694272,0.00026665,2]
[312287279,1705741856711,-194.3986083,0.0002668,10]
[312287280,1705741856720,-208.03009294,0.000267,2]
[312287281,1705741856730,-212.395395,0.000267,2]
[312287282,1705741856739,-150.0,0.000267,2]
[312287283,1705741856750,-198.53863885,0.00026749,2]
[312287284,1705741856759,-300.02,0.00026788,2]
[312287285,1705741856768,-1749.3970249,0.00026795,2]
[312287286,1705741856778,-46802.80676575,0.00026795,2]
[312287287,1705741856827,-2917.07191089,0.00026795,2]
[312287288,1705741856860,-736.19737716,0.00024656,2]
[312287289,1705741856872,-411.21732355,0.00024656,2]
[312287290,1705741856884,-409.64736927,0.00024656,2]
[312287291,1705741856893,-242.73357671,0.00026795,2]
[312287292,1705741856904,-7621.31178471,0.00026795,2]
[312287293,1705741856917,-4167.45,0.00026795,2]
[312287294,1705741856937,-520.27750325,0.00026795,2]
[312287295,1705741856949,-1467.87505136,0.00026795,2]
[312287296,1705741856960,-3461.0592495,0.00026795,2]
[312287297,1705741936514,502.19,0.00020842,2]
[312287298,1705741939023,175.3,0.00020373,2]
[312287299,1705742055888,500.0,0.00018695,2]
[312287300,1705742101875,500.0,0.00018686,2]
[312287301,1705742147600,500.0,0.00018677,2]
[312287302,1705742404325,492.97,0.00021671,2]
[312287309,1705742852907,153.3894,0.00021799,2]
[312287310,1705742854842,483.96,0.00021534,2]
[312287577,1705743032297,-157.51428802,0.000218,2]
[312287578,1705743032307,-343.10242629,0.00021898,2]
[312287579,1705743032321,-350.0,0.00021898,2]
[312287580,1705743032334,-943.99514713,0.00021898,2]
[312287581,1705743032347,-1554.64365677,0.00021898,2]
[312287582,1705743032360,-669.89400012,0.00021899,2]
[312287583,1705743032417,-1139.77254073,0.00021899,2]
[312287584,1705743032437,-1542.2530309,0.00021899,2]
[312287585,1705743032456,-378.98941345,0.00021899,2]
[312287586,1705743032478,-291.09078639,0.00021899,2]
[312287587,1705743032488,-181.90103038,0.000219,2]
[312287588,1705743032497,-559.9916769,0.00021943,2]
[312287589,1705743032507,-211.58072365,0.0002219,2]
[312287590,1705743032517,-417.49,0.00023163,2]
[312287591,1705743032527,-200.0,0.00023165,2]
[312287592,1705743032536,-4332.81475271,0.00023167,2]
[312287593,1705743032548,-965.17012946,0.00023167,2]
[312287594,1705743032560,-609.17478219,0.00023167,2]
[312287595,1705743032572,-17992.84033564,0.00023167,2]
[312287596,1705743032582,-697.6,0.0002322,2]
[312287597,1705743032592,-166.92,0.00023362,2]
[312287598,1705743032601,-156.51,0.0002339,2]
[312287599,1705743032613,-980.71,0.00023422,2]
[312287600,1705743032623,-195.93,0.00023469,2]
[312287602,1705743032633,-170.9,0.000235,2]
[312287604,1705743032642,-2000.0,0.00023501,2]
[312287607,1705743032652,-40.79578049,0.00023517,2]
[312287609,1705743032664,-121.16421951,0.00023517,2]